bitfinex/quotes_SOLUSD_20250421
["timestamp","ask_amount","ask_price","bid_price","bid_amount"]
[1745247643786,0.14216157,139.57,139.52,0.063]
[1745247644470,7.16537689,139.56,139.52,0.063]
[1745247644882,25.07881913,139.56,139.52,0.063]
[1745247645689,7.16537689,139.56,139.52,0.063]
[1745247646495,7.30702507,139.57,139.52,0.063]
[1745247647187,7.1648635,139.57,139.52,0.063]
[1745247648068,7.16451503,139.58,139.52,0.063]
[1745247648267,7.16281068,139.61,139.53,35.83706427]
[1745247648469,7.16281068,139.61,139.53,7.16649341]
[1745247648686,26.0,139.6,139.53,43.00355768]
[1745247648884,7.16281068,139.61,139.53,43.00355768]
[1745247649196,26.0,139.6,139.53,43.00355768]
[1745247649373,7.16281068,139.61,139.54,35.83706427]
[1745247649688,26.0,139.6,139.54,35.83706427]
[1745247650089,26.0,139.6,139.53,43.00355768]
[1745247650485,33.16383695,139.59,139.53,43.00355768]
[1745247650993,33.16383695,139.59,139.52,7.23032758]
[1745247651379,71.07342932,139.59,139.52,0.063]
[1745247651795,20.14216157,139.55,139.52,0.063]
[1745247652001,26.0,139.53,139.52,0.063]
[1745247652593,33.1669175,139.53,139.52,0.063]
[1745247654589,53.30907907,139.53,139.52,0.063]
[1745247654788,53.1669175,139.53,139.52,0.063]
[1745247654993,53.30907907,139.53,139.52,0.063]
[1745247655194,71.95872793,139.53,139.52,1e-08]
[1745247657809,18.64964886,139.52,139.51,1e-08]
[1745247659219,0.14216157,139.52,139.51,1e-08]
[1745247659585,7.30959276,139.52,139.51,1e-08]
[1745247660914,25.95924162,139.52,139.51,1e-08]
[1745247664525,26.0,139.47,139.46,0.063]
[1745247664816,26.14216157,139.47,139.46,0.063]
[1745247665005,33.31216228,139.47,139.46,0.063]
[1745247667415,51.96181114,139.47,139.46,0.063]
[1745247667919,51.96181114,139.47,139.46,1e-08]
[1745247670594,38.64964886,139.45,139.44,0.063]
[1745247671405,71.0950025,139.47,139.44,0.063]
[1745247671604,24.34967762,139.48,139.44,0.063]
[1745247671807,87.96847919,139.5,139.45,35.83706427]
[1745247672004,7.16847919,139.5,139.46,35.83706427]
[1745247672610,7.16847919,139.5,139.45,6.5914]
[1745247673485,7.16847919,139.5,139.44,0.063]
[1745247673688,44.79181043,139.49,139.44,0.063]
[1745247673912,26.0,139.45,139.44,0.063]
[1745247674118,26.14216157,139.45,139.44,0.063]
[1745247674292,0.14216157,139.45,139.44,0.063]
[1745247675109,42.94,139.47,139.44,0.063]
[1745247675415,26.0,139.49,139.44,0.063]
[1745247675616,7.16948666,139.48,139.44,0.063]
[1745247675791,7.1692084,139.49,139.44,0.063]
[1745247676601,33.1692084,139.49,139.44,0.063]
[1745247678319,51.09164011,139.49,139.44,0.063]
[1745247678497,20.14216157,139.48,139.44,0.063]
[1745247679398,26.0,139.45,139.44,0.063]
[1745247680112,33.17102904,139.45,139.44,0.063]
[1745247681518,26.14216157,139.41,139.4,0.063]
[1745247681702,61.73181043,139.41,139.4,0.063]
[1745247681896,142.53181043,139.41,139.4,1e-08]
[1745247683037,142.53181043,139.41,139.38,0.063]
[1745247683038,46.0,139.39,139.38,1e-08]
[1745247683328,33.31782173,139.36,139.35,0.063]
[1745247684720,33.17566016,139.36,139.35,0.063]
[1745247685125,7.1746305,139.38,139.35,0.063]
[1745247685428,7.17360114,139.4,139.35,0.063]
[1745247685630,33.17360114,139.4,139.35,0.063]
[1745247687125,24.11329553,139.41,139.36,43.65846427]
[1745247687330,7.17329553,139.41,139.36,43.65846427]
[1745247687836,7.17329553,139.41,139.36,7.8214]
[1745247688036,25.10601197,139.41,139.36,7.8214]
[1745247689340,20.14216157,139.4,139.35,0.063]
[1745247689835,25.10601197,139.41,139.35,0.063]
[1745247690514,7.17329553,139.41,139.35,0.063]
[1745247690714,7.17329553,139.41,139.36,35.83706427]
[1745247690916,7.17257208,139.42,139.36,43.01240539]
[1745247692432,7.17205766,139.43,139.36,43.01240539]
[1745247693919,25.10220181,139.43,139.35,43.07603381]
[1745247695240,7.17205766,139.43,139.37,35.83706427]
[1745247695826,46.0,139.41,139.35,0.063]
[1745247696033,0.14216157,139.4,139.35,0.063]
[1745247696238,46.0,139.41,139.35,0.063]
[1745247697445,25.107604,139.4,139.35,0.063]
[1745247697634,7.17360114,139.4,139.35,0.063]
[1745247699251,25.107604,139.4,139.35,0.063]
[1745247700330,7.17360114,139.4,139.35,0.063]
[1745247700926,7.17360114,139.4,139.35,35.90006427]
[1745247701250,51.10421371,139.42,139.35,0.063]
[1745247701739,51.10421371,139.42,139.35,35.90006427]
[1745247702053,33.17257208,139.42,139.36,35.83706427]
[1745247702228,51.10400229,139.42,139.35,0.063]
[1745247702431,51.10400229,139.42,139.35,35.90006427]
[1745247702845,51.10400229,139.42,139.35,0.063]
[1745247703359,51.10400229,139.42,139.35,35.90006427]
[1745247703558,51.10400229,139.42,139.35,0.063]
[1745247704456,19.64964886,139.47,139.35,0.063]
[1745247704457,17.92486563,139.48,139.41,35.83706427]
[1745247704761,0.03,139.48,139.44,35.83706427]
[1745247704942,0.03,139.48,139.46,35.83706427]
[1745247705257,0.03,139.48,139.43,35.83706427]
[1745247705437,0.03,139.48,139.44,35.83706427]
[1745247706268,0.03,139.48,139.44,35.83706427]
[1745247707054,0.03,139.48,139.42,35.83706427]
[1745247707546,0.03,139.48,139.41,7.17285985]
[1745247707862,0.03,139.48,139.42,35.83706427]
[1745247708037,0.03,139.48,139.43,35.83706427]
[1745247708239,0.03,139.48,139.42,35.83706427]
[1745247708856,0.03,139.48,139.41,7.17285587]
[1745247709135,0.17216157,139.48,139.39,26.0]
[1745247709360,0.17216157,139.48,139.38,26.44174886]
[1745247709564,20.0,139.47,139.39,35.83706427]
[1745247709764,46.0,139.44,139.38,7.7921]
[1745247710062,7.17205766,139.43,139.38,14.96669637]
[1745247710252,7.17205766,139.43,139.38,7.7921]
[1745247711865,7.17205766,139.43,139.35,42.43956427]
[1745247712167,0.14216157,139.42,139.35,6.6025]
[1745247712372,20.14216157,139.42,139.36,1.79150599]
[1745247712567,20.14216157,139.42,139.35,6.6025]
[1745247713063,20.14216157,139.42,139.35,0.063]
[1745247713447,20.14216157,139.4,139.35,0.063]
[1745247713961,46.14216157,139.4,139.35,0.063]
[1745247714169,7.17514529,139.37,139.35,0.063]
[1745247716170,53.31782173,139.36,139.35,0.063]
[1745247716555,71.96747059,139.36,139.35,0.063]
[1745247716755,20.14216157,139.34,139.33,0.063]
[1745247716951,0.14216157,139.34,139.33,0.063]
[1745247717280,20.14216157,139.34,139.33,0.063]
[1745247717905,33.17566016,139.36,139.33,0.063]
[1745247718063,36.94,139.39,139.33,35.90006427]
[1745247718271,7.17477829,139.38,139.33,0.063]
[1745247718612,0.14216157,139.37,139.33,0.063]
[1745247718898,20.14216157,139.37,139.33,0.063]
[1745247719503,33.17477829,139.38,139.33,0.063]
[1745247720495,20.14216157,139.37,139.33,0.063]
[1745247722480,7.17566016,139.36,139.33,0.063]
[1745247722693,25.11481056,139.36,139.33,0.063]
[1745247723001,44.79181043,139.34,139.33,0.063]
[1745247723194,61.75181043,139.34,139.33,0.063]
[1745247724277,50.27885168,139.34,139.33,0.063]
[1745247724476,50.13669011,139.34,139.33,0.063]
[1745247724788,16.96,139.34,139.33,0.063]
[1745247725805,17.10216157,139.34,139.33,0.063]
[1745247726687,61.75181043,139.34,139.33,0.063]
[1745247729180,35.75181043,139.34,139.33,0.063]
[1745247729598,37.27651043,139.34,139.33,0.063]
[1745247730180,58.80651043,139.34,139.33,0.063]
[1745247730386,37.27651043,139.34,139.33,0.063]
[1745247730697,61.75181043,139.34,139.33,0.063]
[1745247731405,35.75181043,139.34,139.33,0.063]
[1745247738012,57.28181043,139.34,139.33,0.063]
[1745247739027,64.64964886,139.31,139.3,0.063]
[1745247739200,64.79181043,139.31,139.3,0.063]
[1745247740517,46.0,139.31,139.3,0.063]
[1745247740718,46.14216157,139.31,139.3,0.063]
[1745247741901,26.0,139.31,139.3,0.063]
[1745247746829,20.0,139.33,139.3,0.063]
[1745247748017,16.96,139.34,139.3,0.063]
[1745247748322,36.96,139.38,139.31,35.83706427]
[1745247748702,62.96,139.38,139.31,35.83706427]
[1745247749244,62.96,139.38,139.32,7.17772035]
[1745247752038,62.96,139.38,139.3,6.1022]
[1745247752039,0.14216157,139.37,139.3,6.1022]
[1745247752249,46.0,139.35,139.3,0.063]
[1745247752449,0.14216157,139.34,139.3,0.063]
[1745247752619,46.0,139.35,139.3,0.063]
[1745247753519,0.14216157,139.34,139.3,0.063]
[1745247753852,46.0,139.35,139.3,0.063]
[1745247755439,26.0,139.35,139.3,0.063]
[1745247760823,26.0,139.35,139.3,22.52842157]
[1745247761644,0.14216157,139.37,139.3,22.52842157]
[1745247761948,16.96,139.38,139.32,22.46542157]
[1745247762127,42.96,139.38,139.32,22.46542157]
[1745247762457,16.96,139.38,139.32,22.46542157]
[1745247762759,26.0,139.37,139.32,22.46542157]
[1745247763061,26.0,139.37,139.33,7.17720519]
[1745247764155,26.0,139.37,139.32,7.17754551]
[1745247764556,46.0,139.37,139.3,0.063]
[1745247764745,0.14216157,139.36,139.3,0.063]
[1745247766150,20.0,139.35,139.3,0.063]
[1745247767460,0.14216157,139.34,139.3,0.063]
[1745247772166,16.94,139.35,139.3,0.063]
[1745247772343,36.94,139.35,139.3,0.063]
[1745247772968,0.14216157,139.34,139.3,0.063]
[1745247775963,16.94,139.35,139.3,0.063]
[1745247777570,36.94,139.35,139.3,0.063]
[1745247779464,16.94,139.35,139.3,0.063]
[1745247779669,80.8,139.4,139.33,22.46542157]
[1745247779670,16.94,139.39,139.33,22.46542157]
[1745247779874,16.94,139.39,139.31,1.6152]
[1745247780182,26.0,139.38,139.31,1.6152]
[1745247780676,20.14216157,139.38,139.31,1.6152]
[1745247780976,20.14216157,139.36,139.3,0.063]
[1745247781649,7.17617509,139.35,139.3,0.063]
[1745247782374,20.14216157,139.34,139.3,0.063]
[1745247783679,7.17720519,139.33,139.3,0.063]
[1745247784250,107.97481172,139.38,139.31,22.46542157]
[1745247784581,87.97481172,139.38,139.32,22.46542157]
[1745247784763,87.97481172,139.38,139.31,22.46542157]
[1745247785783,87.97481172,139.38,139.32,7.17772035]
[1745247788059,87.97481172,139.38,139.31,22.46542157]
[1745247788258,87.97481172,139.38,139.3,7.24175089]
[1745247788485,87.97481172,139.38,139.31,22.46542157]
[1745247788699,87.97481172,139.38,139.3,7.24175089]
[1745247788700,20.14216157,139.37,139.3,7.24175089]
[1745247789191,105.91138798,139.38,139.3,29.70717246]
[1745247789689,7.17481172,139.38,139.32,1.5562]
[1745247790063,7.17481172,139.38,139.32,8.73351808]
[1745247790263,50.11436051,139.39,139.32,31.19893965]
[1745247790473,50.11436051,139.39,139.33,22.46542157]
[1745247790677,50.11436051,139.39,139.32,31.19893965]
[1745247791191,50.11436051,139.39,139.32,8.73351808]
[1745247791665,20.14216157,139.38,139.32,1.5562]
[1745247792182,7.17514529,139.37,139.32,1.5562]
[1745247792390,0.14216157,139.36,139.3,0.063]
[1745247792596,46.14216157,139.36,139.3,0.063]
[1745247794303,25.11661283,139.35,139.3,0.063]
[1745247794618,20.14216157,139.34,139.3,0.063]
[1745247796288,7.17720519,139.33,139.3,0.063]
[1745247797312,26.0,139.31,139.3,0.063]
[1745247797486,26.14216157,139.31,139.3,0.063]
[1745247798686,33.32039715,139.31,139.3,0.063]
[1745247798883,33.32039715,139.31,139.29,0.063]
[1745247798884,38.64964886,139.3,139.29,0.063]
[1745247799088,38.64964886,139.26,139.25,0.063]
[1745247799291,0.14216157,139.25,139.22,0.063]
[1745247799598,44.79181043,139.25,139.22,0.063]
[1745247800110,26.14216157,139.25,139.22,0.063]
[1745247800809,46.0,139.24,139.22,0.063]
[1745247801219,99.59181043,139.23,139.22,1e-08]
[1745247801519,64.79181043,139.22,139.21,1e-08]
[1745247801826,81.71181043,139.22,139.21,1e-08]
[1745247802913,88.89468645,139.22,139.21,1e-08]
[1745247805539,70.24503759,139.22,139.21,1e-08]
[1745247805837,88.89468645,139.22,139.21,1e-08]
[1745247806035,64.64964886,139.2,139.19,1e-08]
[1745247806334,64.79181043,139.2,139.19,1e-08]
[1745247807412,71.97571847,139.2,139.19,1e-08]
[1745247807823,53.32606961,139.2,139.19,1e-08]
[1745247808549,71.97571847,139.2,139.19,1e-08]
[1745247812837,93.50571847,139.2,139.19,1e-08]
[1745247813346,71.97571847,139.2,139.19,1e-08]
[1745247814144,71.8335569,139.2,139.19,1e-08]
[1745247814521,53.18390804,139.2,139.19,1e-08]
[1745247814722,53.32606961,139.2,139.19,1e-08]
[1745247815143,7.18390804,139.2,139.19,1e-08]
[1745247815331,7.18362805,139.21,139.19,1e-08]
[1745247816241,16.92,139.22,139.19,1e-08]
[1745247816242,24.10308841,139.22,139.19,1e-08]
[1745247818644,42.06027846,139.22,139.19,1e-08]
[1745247819027,24.10308841,139.22,139.19,1e-08]
[1745247819956,16.94,139.26,139.2,24.11112157]
[1745247820122,7.18153553,139.25,139.2,1.6457]
[1745247820935,0.14216157,139.24,139.2,1.6457]
[1745247821248,20.14216157,139.24,139.19,1e-08]
[1745247821443,46.14216157,139.24,139.19,1e-08]
[1745247822143,25.13826042,139.23,139.19,1e-08]
[1745247824270,7.18236012,139.23,139.19,1e-08]
[1745247824439,7.18200302,139.24,139.19,22.46542158]
[1745247825267,7.18200302,139.24,139.19,1e-08]
[1745247825439,26.0,139.23,139.19,1e-08]
[1745247826274,7.18287602,139.22,139.19,1e-08]
[1745247827654,25.14006607,139.22,139.19,1e-08]
[1745247827961,45.14006607,139.22,139.19,1e-08]
[1745247828946,25.14006607,139.22,139.19,1e-08]
[1745247831166,45.14006607,139.22,139.19,1e-08]
[1745247832461,0.14216157,139.21,139.19,1e-08]
[1745247832960,20.14216157,139.2,139.19,1e-08]
[1745247833168,16.92,139.21,139.19,1e-08]
[1745247833850,7.18390804,139.2,139.19,1e-08]
[1745247836766,7.18287602,139.22,139.19,1e-08]
[1745247838175,25.14006607,139.22,139.19,1e-08]
[1745247839577,45.14006607,139.22,139.19,1e-08]
[1745247840177,0.14216157,139.21,139.19,1e-08]
[1745247840486,25.14006607,139.22,139.19,1e-08]
[1745247842965,45.14006607,139.22,139.19,1e-08]
[1745247843990,25.14006607,139.22,139.19,1e-08]
[1745247846786,45.14006607,139.22,139.19,1e-08]
[1745247847289,25.14006607,139.22,139.19,1e-08]
[1745247848283,7.18287602,139.22,139.19,1e-08]
[1745247850870,25.14006607,139.22,139.19,1e-08]
[1745247851569,20.14216157,139.21,139.19,1e-08]
[1745247852883,7.18390804,139.2,139.19,1e-08]
[1745247853693,51.97571847,139.2,139.19,1e-08]
[1745247854007,25.97571847,139.2,139.19,1e-08]
[1745247854887,47.50571847,139.2,139.19,1e-08]
[1745247856185,25.97571847,139.2,139.19,1e-08]
[1745247859814,25.97571847,139.2,139.13,0.063]
[1745247860007,20.0,139.16,139.13,0.063]
[1745247860221,36.9,139.16,139.13,0.063]
[1745247860722,16.9,139.16,139.13,0.063]
[1745247861232,62.04367815,139.2,139.14,1.5899]
[1745247861516,88.04367815,139.2,139.14,1.5899]
[1745247861893,68.04367815,139.2,139.14,1.5899]
[1745247862321,42.04367815,139.2,139.14,1.5899]
[1745247862499,68.04367815,139.2,139.14,1.5899]
[1745247864025,25.14729127,139.18,139.14,1.5899]
[1745247866226,7.18494036,139.18,139.14,1.5899]
[1745247867223,7.18494036,139.18,139.14,7.6729]
[1745247868338,7.18442416,139.19,139.14,7.6729]
[1745247869936,7.18442416,139.19,139.14,30.19719116]
[1745247870140,16.9,139.2,139.17,22.52429116]
[1745247870141,7.18411061,139.2,139.17,22.52429116]
[1745247870442,7.18236012,139.23,139.18,1.5899]
[1745247870745,25.13826042,139.23,139.18,1.5899]
[1745247885355,16.9,139.24,139.18,1.5899]
[1745247885555,7.18029726,139.27,139.23,14.4033722]
[1745247885852,0.03,139.28,139.25,14.4033722]
[1745247886055,0.03,139.28,139.24,15.9350722]
[1745247886761,0.03,139.28,139.24,23.11681054]
[1745247887332,0.03,139.28,139.24,1.5317]
[1745247887642,0.03,139.28,139.24,31.19617596]
[1745247887842,0.03,139.28,139.25,6.3071]
[1745247888045,0.03,139.28,139.25,28.78975345]
[1745247888244,0.03,139.28,139.27,22.48265345]
[1745247888437,0.03,139.28,139.26,22.48265345]
[1745247888957,0.03,139.28,139.27,22.48265345]
[1745247889343,0.03,139.28,139.26,29.66304016]
[1745247889755,0.03,139.28,139.25,35.97104288]
[1745247890967,0.03,139.28,139.25,6.3071]
[1745247891259,0.03,139.28,139.25,35.97094591]
[1745247891938,0.03,139.28,139.26,22.48265345]
[1745247892439,0.03,139.28,139.27,22.48265345]
[1745247893661,0.03,139.28,139.26,29.66320839]
[1745247894338,0.03,139.28,139.25,6.3071]
[1745247894537,0.03,139.28,139.25,28.78975345]
[1745247895659,0.03,139.28,139.25,35.9710204]
[1745247896052,0.03,139.28,139.25,28.78975345]
[1745247896362,0.03,139.28,139.25,22.48265345]
[1745247896754,0.03,139.28,139.26,22.48265345]
[1745247898972,0.03,139.28,139.27,22.48265345]
[1745247899649,0.03,139.28,139.27,41.13230231]
[1745247900551,0.03,139.28,139.27,48.31259957]
[1745247900756,0.03,139.28,139.27,54.91299957]
[1745247902573,0.03,139.28,139.27,163.32896113]
[1745247902767,0.03,139.28,139.27,159.81161458]
[1745247903149,0.03,139.28,139.27,137.32896113]
[1745247904557,0.03,139.28,139.27,159.81161458]
[1745247904758,0.03,139.28,139.27,137.32896113]
[1745247905169,0.03,139.28,139.27,159.81161458]
[1745247905670,0.03,139.29,139.28,18.79181043]
[1745247905854,0.03,139.29,139.28,63.75711733]
[1745247906457,0.03,139.29,139.28,147.94446387]
[1745247906661,0.03,139.29,139.28,129.15265344]
[1745247906874,0.03,139.29,139.26,103.15265344]
[1745247907061,0.03,139.29,139.24,7.18157844]
[1745247907263,0.03,139.29,139.23,110.91745344]
[1745247907553,0.03,139.29,139.23,136.91745344]
[1745247907761,0.03,139.29,139.24,22.48265345]
[1745247908577,0.03,139.29,139.24,0.14216157]
[1745247908770,0.03,139.29,139.26,22.48265345]
[1745247909076,0.03,139.29,139.27,22.48265345]
[1745247909275,0.03,139.29,139.28,22.48265345]
[1745247909760,0.03,139.29,139.28,74.31208404]
[1745247910165,0.03,139.29,139.28,67.13230231]
[1745247910875,0.03,139.29,139.28,74.31208404]
[1745247912383,0.03,139.34,139.32,44.64964886]
[1745247912682,0.03,139.34,139.33,41.13230231]
[1745247914390,0.03,139.34,139.33,48.3095075]
[1745247915195,0.03,139.34,139.33,22.48265345]
[1745247916068,0.03,139.34,139.33,29.65985864]
[1745247917898,0.03,139.34,139.33,22.48265345]
[1745247918398,0.03,139.34,139.31,7.17809639]
[1745247918586,0.03,139.34,139.33,48.48265345]
[1745247918790,0.03,139.34,139.32,22.48265345]
[1745247919095,0.03,139.34,139.33,22.48265345]
[1745247920775,0.03,139.34,139.33,55.65985864]
[1745247922095,0.03,139.34,139.33,29.65985864]
[1745247922296,0.03,139.34,139.33,48.3095075]
[1745247922796,0.03,139.34,139.33,48.45166907]
[1745247924103,0.03,139.34,139.3,80.66999999]
[1745247924676,0.03,139.34,139.3,103.15265344]
[1745247925097,0.03,139.34,139.3,110.33120511]
[1745247925886,0.03,139.34,139.3,103.15265344]
[1745247926899,0.03,139.34,139.3,22.48265345]
[1745247927097,0.03,139.34,139.29,41.13230231]
[1745247927294,0.03,139.34,139.29,48.31125837]
[1745247927500,0.03,139.34,139.29,41.13230231]
[1745247929100,0.03,139.34,139.29,48.31156744]
[1745247929700,0.03,139.34,139.3,22.48265345]
[1745247929909,0.03,139.34,139.31,22.48265345]
[1745247931308,0.03,139.34,139.29,41.13230231]
[1745247932802,0.03,139.34,139.29,18.64964886]
[1745247933005,0.03,139.34,139.3,22.48265345]
[1745247933185,0.03,139.34,139.31,22.48265345]
[1745247933586,0.03,139.34,139.3,22.48265345]
[1745247936183,0.03,139.34,139.28,104.79805344]
[1745247937210,0.03,139.34,139.26,41.13230231]
[1745247937211,26.0,139.32,139.26,41.13230231]
[1745247937391,26.0,139.32,139.26,22.48265345]
[1745247937700,27.5968,139.31,139.27,1.79290807]
[1745247938290,16.87,139.34,139.29,22.48265345]
[1745247938489,0.03,139.34,139.29,22.48265345]
[1745247938884,26.03,139.34,139.29,22.48265345]
[1745247939099,7.17738044,139.33,139.28,41.13230231]
[1745247939513,7.17738044,139.33,139.28,18.64964886]
[1745247939810,7.17738044,139.33,139.28,41.13230231]
[1745247940491,7.17738044,139.33,139.28,22.48265345]
[1745247940492,25.12039343,139.33,139.28,22.48265345]
[1745247940806,25.12039343,139.33,139.27,80.66999999]
[1745247942112,17.94301299,139.33,139.27,80.66999999]
[1745247943116,17.94301299,139.33,139.26,22.48265345]
[1745247943494,7.20669011,139.34,139.28,22.48265345]
[1745247944413,7.20669011,139.34,139.27,7.18003903]
[1745247944621,7.20669011,139.34,139.28,22.48265345]
[1745247944998,25.14841538,139.34,139.28,22.48265345]
[1745247946121,25.14841538,139.34,139.27,41.13230231]
[1745247946620,25.14841538,139.34,139.28,1.79288911]
[1745247947137,6.6341,139.32,139.23,18.71264886]
[1745247947292,26.0,139.31,139.23,0.063]
[1745247948101,25.12562813,139.3,139.23,0.063]
[1745247949410,25.12923606,139.28,139.23,0.063]
[1745247950118,81.02814473,139.28,139.23,0.063]
[1745247950434,26.0,139.25,139.23,0.063]
[1745247951526,7.18184429,139.24,139.23,0.063]
[1745247954625,25.13645503,139.24,139.21,0.063]
[1745247955351,26.0,139.22,139.21,0.063]
[1745247955531,33.18287602,139.22,139.21,0.063]
[1745247957420,51.14006607,139.22,139.15,6.0746]
[1745247957626,0.14216157,139.21,139.15,0.063]
[1745247957827,20.0,139.2,139.15,0.063]
[1745247959029,25.14548458,139.19,139.11,109.48375344]
[1745247959226,25.14548458,139.19,139.1,1.6501]
[1745247959227,38.48986157,139.18,139.1,1.6501]
[1745247959521,26.0,139.15,139.08,0.063]
[1745247960154,46.0,139.13,139.08,0.063]
[1745247960547,26.0,139.1,139.08,0.063]
[1745247960757,26.0,139.1,139.09,0.063]
[1745247960919,46.14216157,139.09,139.0,6.6421]
[1745247961124,25.16537244,139.08,139.0,6.6421]
[1745247961351,25.16537244,139.08,138.99,1.6501]
[1745247961352,41.98537244,139.08,138.99,1.6501]
[1745247961655,26.0,139.04,138.97,6.6421]
[1745247961947,26.0,139.06,139.0,22.48265345]
[1745247962252,26.0,139.07,139.01,22.48265345]
[1745247962431,26.0,139.07,139.02,22.48265345]
[1745247962735,26.0,139.07,139.01,22.48265345]
[1745247962951,24.01010641,139.08,139.03,22.48265345]
[1745247963267,80.8,139.13,139.07,22.48265345]
[1745247963268,7.18752246,139.13,139.07,22.48265345]
[1745247963427,7.18752246,139.13,139.05,6.6421]
[1745247963631,7.18752246,139.13,139.06,22.48265345]
[1745247963837,51.15632861,139.13,139.05,6.6421]
[1745247964451,26.0,139.1,139.03,22.48265345]
[1745247965460,106.8,139.12,139.06,22.48265345]
[1745247965749,106.8,139.12,139.06,36.05571875]
[1745247966250,7.18855581,139.11,139.06,36.05571875]
[1745247970036,36.84,139.1,139.01,1.6501]
[1745247970364,62.84,139.1,139.03,36.05571875]
[1745247970931,62.84,139.1,139.04,36.05571875]
[1745247971136,7.18958947,139.09,139.03,36.05571875]
[1745247972048,25.16356315,139.09,139.03,36.05571875]
[1745247972758,25.16356315,139.09,139.02,36.05571875]
[1745247975266,25.16356315,139.09,139.01,37.70581875]
[1745247975461,25.16356315,139.09,139.02,36.05571875]
[1745247975655,25.16356315,139.09,139.01,1.6501]
[1745247975840,25.16356315,139.09,139.02,36.05571875]
[1745247976170,25.16356315,139.09,139.01,37.70581875]
[1745247976343,61.11151052,139.09,139.01,1.6501]
[1745247976864,61.11151052,139.09,139.01,37.70581875]
[1745247977171,61.11151052,139.09,139.01,1.6501]
[1745247979167,26.0,139.06,138.99,36.05571875]
[1745247979375,26.0,139.06,138.98,8.2358]
[1745247979667,62.96216157,139.05,138.95,18.64964886]
[1745247979867,26.0,139.02,138.94,88.59479999]
[1745247980065,26.0,139.02,138.94,44.29151875]
[1745247980240,26.0,139.02,138.94,8.2358]
[1745247980445,26.0,139.02,138.95,36.05571875]
[1745247980750,25.17804473,139.01,138.94,8.2358]
[1745247980957,25.17804473,139.01,138.95,36.05571875]
[1745247981464,25.17804473,139.01,138.94,8.2358]
[1745247981768,25.17804473,139.01,138.94,44.29151875]
[1745247981944,25.17804473,139.01,138.94,8.2358]
[1745247982141,25.17804473,139.01,138.95,36.05571875]
[1745247982351,25.17804473,139.01,138.94,44.29151875]
[1745247983974,25.17804473,139.01,138.93,25.91042812]
[1745247984179,7.19372706,139.01,138.95,54.70536761]
[1745247984349,17.98149456,139.04,138.99,36.05571875]
[1745247984350,7.19228237,139.04,138.99,36.05571875]
[1745247984545,25.16425258,139.09,139.03,36.05571875]
[1745247984750,7.18958947,139.09,139.05,36.05571875]
[1745247984955,7.18958947,139.09,139.04,36.05571875]
[1745247985373,7.18958947,139.09,139.03,36.05571875]
[1745247985781,7.18958947,139.09,139.04,36.05571875]
[1745247986078,7.18958947,139.09,139.02,18.64964886]
[1745247986376,7.18958947,139.09,139.03,36.05571875]
[1745247986556,7.18958947,139.09,139.04,36.05571875]
[1745247987777,7.18958947,139.09,139.03,36.05571875]
[1745247988282,7.18958947,139.09,139.01,36.05571875]
[1745247988483,25.16356315,139.09,139.04,36.05571875]
[1745247988667,7.18958947,139.09,139.04,36.05571875]
[1745247988985,7.18958947,139.09,139.03,36.05571875]
[1745247989286,7.18958947,139.09,139.02,22.54515352]
[1745247989654,0.14216157,139.08,138.99,80.35899999]
[1745247989854,25.17080186,139.05,138.95,87.55554994]
[1745247990061,25.17080186,139.05,138.96,22.54515352]
[1745247990471,25.17080186,139.05,138.97,30.05435352]
[1745247991454,25.17080186,139.05,138.97,7.5092]
[1745247991660,25.17080186,139.05,138.97,30.05435352]
[1745247992168,25.17080186,139.05,138.97,7.5092]
[1745247992368,25.17080186,139.05,138.97,30.05435352]
[1745247992855,25.17080186,139.05,138.98,22.54515352]
[1745247993058,25.17080186,139.05,138.99,22.54515352]
[1745247993358,7.19165767,139.05,139.0,22.54515352]